[Event "*** Titled Tuesday Blitz"]
[Site "Chess.com"]
[Date "2021.04.20"]
[Round "7"]
[White "Manukyan_Artak"]
[Black "Mikhail_Golubev"]
[Result "1-0"]
[WhiteElo "2427"]
[BlackElo "2575"]
[TimeControl "180+1"]
[EndTime "11:18:07 PDT"]
[Termination "Manukyan_Artak won on time"]

1. e4 {[%clk 0:02:57.4]} 1... c5 {[%clk 0:02:59.3]} 2. Nf3 {[%clk 0:02:56.9]}
2... d6 {[%clk 0:02:59.4]} 3. Bb5+ {[%clk 0:02:56.2]} 3... Nd7 {[%clk
0:02:58.8]} 4. O-O {[%clk 0:02:55.4]} 4... Nf6 {[%clk 0:02:55.5]} 5. Re1 {[%clk
0:02:54.9]} 5... a6 {[%clk 0:02:54.4]} 6. Bd3 {[%clk 0:02:50.8]} 6... b5 {[%clk
0:02:34.3]} 7. c4 {[%clk 0:02:46.1]} 7... b4 {[%clk 0:02:11]} 8. a4 {[%clk
0:02:31.5]} 8... e6 {[%clk 0:02:02.4]} 9. b3 {[%clk 0:02:29.8]} 9... Be7 {[%clk
0:02:01.4]} 10. Bb2 {[%clk 0:02:29.4]} 10... e5 {[%clk 0:02:00.7]} 11. Bf1
{[%clk 0:02:25.4]} 11... O-O {[%clk 0:01:59.3]} 12. d3 {[%clk 0:02:23.9]} 12...
g6 {[%clk 0:01:32.7]} 13. Nbd2 {[%clk 0:02:19.1]} 13... Nh5 {[%clk 0:01:32.3]}
14. g3 {[%clk 0:02:17.6]} 14... Ng7 {[%clk 0:01:31.2]} 15. Bg2 {[%clk
0:02:12.8]} 15... Bb7 {[%clk 0:01:18.3]} 16. Nf1 {[%clk 0:02:05.7]} 16... f5
{[%clk 0:01:18.4]} 17. Ne3 {[%clk 0:01:40.5]} 17... f4 {[%clk 0:01:17.8]} 18.
Nd5 {[%clk 0:01:40]} 18... Bxd5 {[%clk 0:01:16.7]} 19. exd5 {[%clk 0:01:39.5]}
19... Nf5 {[%clk 0:00:56.5]} 20. Nd2 {[%clk 0:01:31.2]} 20... Nf6 {[%clk
0:00:34.8]} 21. Ne4 {[%clk 0:01:30]} 21... Nxe4 {[%clk 0:00:20.4]} 22. dxe4
{[%clk 0:01:30.5]} 22... Nd4 {[%clk 0:00:20.1]} 23. Bxd4 {[%clk 0:01:25.5]}
23... exd4 {[%clk 0:00:18.9]} 24. e5 {[%clk 0:01:10.8]} 24... dxe5 {[%clk
0:00:19]} 25. Rxe5 {[%clk 0:01:10.2]} 25... Bd6 {[%clk 0:00:19]} 26. Re6 {[%clk
0:01:08.6]} 26... Ra7 {[%clk 0:00:18.9]} 27. Qe2 {[%clk 0:00:44.3]} 27... Raf7
{[%clk 0:00:18.6]} 28. Re1 {[%clk 0:00:43.5]} 28... f3 {[%clk 0:00:18.1]} 29.
Bxf3 {[%clk 0:00:32.2]} 29... Rxf3 {[%clk 0:00:19]} 30. Re8 {[%clk 0:00:31]}
30... Rxe8 {[%clk 0:00:16]} 31. Qxe8+ {[%clk 0:00:31.9]} 31... Qxe8 {[%clk
0:00:16]} 32. Rxe8+ {[%clk 0:00:32.8]} 32... Rf8 {[%clk 0:00:15.5]} 33. Re6
{[%clk 0:00:31.8]} 33... Rd8 {[%clk 0:00:15.9]} 34. Kf1 {[%clk 0:00:31.4]} 34...
Kf7 {[%clk 0:00:15.9]} 35. f4 {[%clk 0:00:30.1]} 35... Rd7 {[%clk 0:00:15.2]}
36. h4 {[%clk 0:00:27.4]} 36... h5 {[%clk 0:00:14.9]} 37. Kf2 {[%clk 0:00:26.7]}
37... Re7 {[%clk 0:00:11.6]} 38. Rxd6 {[%clk 0:00:26]} 38... d3 {[%clk
0:00:10.1]} 39. Re6 {[%clk 0:00:26.2]} 39... Rxe6 {[%clk 0:00:10]} 40. dxe6+
{[%clk 0:00:26.4]} 40... Kxe6 {[%clk 0:00:10.7]} 41. Ke3 {[%clk 0:00:27.1]}
41... Kf5 {[%clk 0:00:11.2]} 42. Kxd3 {[%clk 0:00:26.8]} 42... Kg4 {[%clk
0:00:11.7]} 43. Ke4 {[%clk 0:00:27.3]} 43... Kxg3 {[%clk 0:00:11.7]} 44. Kd5
{[%clk 0:00:28.2]} 44... Kxh4 {[%clk 0:00:09.6]} 45. Kxc5 {[%clk 0:00:29.1]}
45... Kg3 {[%clk 0:00:09.4]} 46. Kxb4 {[%clk 0:00:18]} 46... h4 {[%clk
0:00:09.7]} 47. c5 {[%clk 0:00:17.9]} 47... h3 {[%clk 0:00:10.2]} 48. c6 {[%clk
0:00:18.4]} 48... h2 {[%clk 0:00:10.8]} 49. c7 {[%clk 0:00:18.8]} 49... h1=Q
{[%clk 0:00:10.1]} 50. c8=Q {[%clk 0:00:19]} 50... Qe4+ {[%clk 0:00:09.1]} 51.
Qc4 {[%clk 0:00:18.6]} 51... Qxc4+ {[%clk 0:00:07.4]} 52. bxc4 {[%clk
0:00:17.5]} 52... Kxf4 {[%clk 0:00:07.4]} 53. c5 {[%clk 0:00:17.4]} 53... Ke5
{[%clk 0:00:06.6]} 54. Ka5 {[%clk 0:00:17.4]} 54... g5 {[%clk 0:00:06.5]} 55.
Kb6 {[%clk 0:00:16.4]} 55... g4 {[%clk 0:00:06]} 56. c6 {[%clk 0:00:16.9]} 56...
g3 {[%clk 0:00:03.4]} 57. c7 {[%clk 0:00:17.2]} 57... g2 {[%clk 0:00:04]} 58.
c8=Q {[%clk 0:00:17.4]} 58... g1=Q+ {[%clk 0:00:04]} 59. Kxa6 {[%clk 0:00:14.6]}
59... Qg6+ {[%clk 0:00:03.5]} 60. Kb5 {[%clk 0:00:13.7]} 60... Qb1+ {[%clk
0:00:02.9]} 61. Ka6 {[%clk 0:00:12.4]} 61... Qg6+ {[%clk 0:00:02.7]} 62. Ka5
{[%clk 0:00:11.7]} 62... Kd4 {[%clk 0:00:02.8]} 63. Qd7+ {[%clk 0:00:10.9]}
63... Kc3 {[%clk 0:00:02.4]} 64. Qc7+ {[%clk 0:00:08.9]} 64... Kd2 {[%clk
0:00:02.7]} 65. Qe7 {[%clk 0:00:07.7]} 65... Kd1 {[%clk 0:00:02.4]} 66. Qc5
{[%clk 0:00:06.9]} 66... Qb1 {[%clk 0:00:01.8]} 67. Qb5 {[%clk 0:00:06.4]} 1-0

[Event "*** Titled Tuesday Blitz"]
[Site "Chess.com"]
[Date "2021.04.20"]
[Round "7"]
[White "MaevskiyNikolay"]
[Black "PchelkinVK"]
[Result "0-1"]
[WhiteElo "2476"]
[BlackElo "2643"]
[TimeControl "180+1"]
[EndTime "11:18:09 PDT"]
[Termination "PchelkinVK won by checkmate"]

1. Nf3 {[%clk 0:03:00.9]} 1... Nc6 {[%clk 0:02:54.8]} 2. d4 {[%clk 0:02:58.3]}
2... d5 {[%clk 0:02:53.9]} 3. c4 {[%clk 0:02:57.2]} 3... Bg4 {[%clk 0:02:53.8]}
4. Nc3 {[%clk 0:02:54.3]} 4... e6 {[%clk 0:02:49.2]} 5. Bf4 {[%clk 0:02:53.4]}
5... Nf6 {[%clk 0:02:42.1]} 6. e3 {[%clk 0:02:53.1]} 6... Bd6 {[%clk 0:02:40.4]}
7. Bg3 {[%clk 0:02:51.9]} 7... O-O {[%clk 0:02:40.2]} 8. Be2 {[%clk 0:02:51.4]}
8... a6 {[%clk 0:02:36.7]} 9. O-O {[%clk 0:02:50.9]} 9... Re8 {[%clk 0:02:36.4]}
10. h3 {[%clk 0:02:43.8]} 10... Bxf3 {[%clk 0:02:18.1]} 11. Bxf3 {[%clk
0:02:33.5]} 11... Bxg3 {[%clk 0:02:17.7]} 12. fxg3 {[%clk 0:02:31.4]} 12... dxc4
{[%clk 0:02:18.1]} 13. Bxc6 {[%clk 0:02:29.8]} 13... bxc6 {[%clk 0:02:16.6]} 14.
Qa4 {[%clk 0:02:29.5]} 14... Qd6 {[%clk 0:02:05.4]} 15. Qxc4 {[%clk 0:02:27.6]}
15... Qxg3 {[%clk 0:01:57.7]} 16. Rf3 {[%clk 0:02:27.5]} 16... Qd6 {[%clk
0:01:57]} 17. Rxf6 {[%clk 0:02:13.2]} 17... gxf6 {[%clk 0:01:54.9]} 18. Ne4
{[%clk 0:02:12.8]} 18... Qe7 {[%clk 0:01:53.7]} 19. Qxc6 {[%clk 0:01:48.1]}
19... f5 {[%clk 0:01:52.6]} 20. Nc5 {[%clk 0:01:43.8]} 20... Qd6 {[%clk
0:01:48]} 21. Qf3 {[%clk 0:01:32.6]} 21... Kh8 {[%clk 0:01:42]} 22. Nd3 {[%clk
0:01:26.2]} 22... f6 {[%clk 0:01:08.2]} 23. Rf1 {[%clk 0:00:37.1]} 23... Rad8
{[%clk 0:01:03.9]} 24. Nc5 {[%clk 0:00:28.4]} 24... Rb8 {[%clk 0:00:57.1]} 25.
b3 {[%clk 0:00:28.2]} 25... Re7 {[%clk 0:00:47.1]} 26. Rf2 {[%clk 0:00:28]}
26... Rg8 {[%clk 0:00:46.2]} 27. Qb7 {[%clk 0:00:24.7]} 27... Reg7 {[%clk
0:00:37.9]} 28. Kf1 {[%clk 0:00:23.8]} 28... f4 {[%clk 0:00:32.9]} 29. Ne4
{[%clk 0:00:20.5]} 29... Qe7 {[%clk 0:00:20.9]} 30. exf4 {[%clk 0:00:20]} 30...
Qa3 {[%clk 0:00:12.8]} 31. Qc6 {[%clk 0:00:12.6]} 31... Qe7 {[%clk 0:00:10.2]}
32. Qc3 {[%clk 0:00:11.5]} 32... Rd8 {[%clk 0:00:08.7]} 33. Nc5 {[%clk
0:00:10.3]} 33... Qd6 {[%clk 0:00:08]} 34. Qe3 {[%clk 0:00:07.6]} 34... Re7
{[%clk 0:00:06.1]} 35. Rd2 {[%clk 0:00:07.2]} 35... f5 {[%clk 0:00:05.3]} 36.
Nb7 {[%clk 0:00:07.4]} 36... Qd7 {[%clk 0:00:05]} 37. Qe5+ {[%clk 0:00:06.2]}
37... Kg8 {[%clk 0:00:04.8]} 38. Rd3 {[%clk 0:00:05.2]} 38... Rde8 {[%clk
0:00:04.5]} 39. Nc5 {[%clk 0:00:04.8]} 39... Qd5 {[%clk 0:00:04.6]} 40. Rg3+
{[%clk 0:00:04.7]} 40... Kf7 {[%clk 0:00:02.1]} 41. Qxd5 {[%clk 0:00:05.1]}
41... exd5 {[%clk 0:00:02.2]} 42. Kg1 {[%clk 0:00:05.6]} 42... Re1+ {[%clk
0:00:02.3]} 43. Kh2 {[%clk 0:00:05.2]} 43... Rd1 {[%clk 0:00:02.9]} 44. Nd3
{[%clk 0:00:04.4]} 44... Re4 {[%clk 0:00:02.3]} 45. Ne5+ {[%clk 0:00:03.2]}
45... Ke6 {[%clk 0:00:02.8]} 46. Rg5 {[%clk 0:00:03.4]} 46... Rdxd4 {[%clk
0:00:03.1]} 47. Nc6 {[%clk 0:00:03.7]} 47... Rd2 {[%clk 0:00:02.2]} 48. Nd8+
{[%clk 0:00:04.2]} 48... Kd7 {[%clk 0:00:02.2]} 49. Rg8 {[%clk 0:00:04.5]} 49...
Rxf4 {[%clk 0:00:02.1]} 50. Nf7 {[%clk 0:00:04.9]} 50... Rff2 {[%clk 0:00:02.3]}
51. Ne5+ {[%clk 0:00:05.5]} 51... Ke6 {[%clk 0:00:02.6]} 52. Nc6 {[%clk
0:00:04.6]} 52... f4 {[%clk 0:00:02.6]} 53. Kg1 {[%clk 0:00:03.6]} 53... Kd6
{[%clk 0:00:02.3]} 54. Nd8 {[%clk 0:00:03.6]} 54... Rfe2 {[%clk 0:00:02.5]} 55.
Nf7+ {[%clk 0:00:03.9]} 55... Kc5 {[%clk 0:00:03]} 56. Nd8 {[%clk 0:00:03.9]}
56... Kb4 {[%clk 0:00:02.7]} 57. Nc6+ {[%clk 0:00:04.1]} 57... Kc3 {[%clk
0:00:02.8]} 58. b4 {[%clk 0:00:04.2]} 58... d4 {[%clk 0:00:03.2]} 59. b5 {[%clk
0:00:04.6]} 59... axb5 {[%clk 0:00:03.2]} 60. Rg7 {[%clk 0:00:03.3]} 60... d3
{[%clk 0:00:03.6]} 61. Rg4 {[%clk 0:00:02.9]} 61... Rc2 {[%clk 0:00:03.8]} 62.
Na5 {[%clk 0:00:02.2]} 62... d2 {[%clk 0:00:03.2]} 63. Nb3 {[%clk 0:00:01.3]}
63... d1=Q+ {[%clk 0:00:03.4]} 64. Kh2 {[%clk 0:00:02.2]} 64... Rxg2+ {[%clk
0:00:03.1]} 65. Rxg2 {[%clk 0:00:02.3]} 65... Rxg2+ {[%clk 0:00:04]} 66. Kxg2
{[%clk 0:00:02.9]} 66... Qe2+ {[%clk 0:00:04.6]} 67. Kg1 {[%clk 0:00:02.8]}
67... f3 {[%clk 0:00:05.2]} 68. Nc1 {[%clk 0:00:03.1]} 68... Qg2# {[%clk
0:00:05.2]} 0-1

[Event "*** Titled Tuesday Blitz"]
[Site "Chess.com"]
[Date "2021.04.20"]
[Round "7"]
[White "Twitch_ElhamBlitz05"]
[Black "KeithArkell"]
[Result "0-1"]
[WhiteElo "2725"]
[BlackElo "2613"]
[TimeControl "180+1"]
[EndTime "11:18:11 PDT"]
[Termination "KeithArkell won by resignation"]

1. e4 {[%clk 0:03:00.9]} 1... c6 {[%clk 0:02:59.7]} 2. d4 {[%clk 0:03:00.4]}
2... d5 {[%clk 0:03:00]} 3. Nc3 {[%clk 0:03:01]} 3... dxe4 {[%clk 0:03:00]} 4.
Nxe4 {[%clk 0:03:01.7]} 4... Nd7 {[%clk 0:03:00.5]} 5. Nf3 {[%clk 0:03:01.2]}
5... Ngf6 {[%clk 0:03:00.6]} 6. Nxf6+ {[%clk 0:03:01.9]} 6... Nxf6 {[%clk
0:03:01.2]} 7. Bc4 {[%clk 0:03:02.6]} 7... Bf5 {[%clk 0:03:01.2]} 8. Ne5 {[%clk
0:03:00]} 8... e6 {[%clk 0:03:00.8]} 9. g4 {[%clk 0:02:53.6]} 9... Bg6 {[%clk
0:03:00.2]} 10. h4 {[%clk 0:02:49.5]} 10... Nd7 {[%clk 0:02:58.5]} 11. Nxg6
{[%clk 0:02:14]} 11... hxg6 {[%clk 0:02:56.8]} 12. Bg5 {[%clk 0:02:04.3]} 12...
Be7 {[%clk 0:02:51.7]} 13. Be3 {[%clk 0:01:54.1]} 13... Rxh4 {[%clk 0:02:48.4]}
14. Rxh4 {[%clk 0:01:53.5]} 14... Bxh4 {[%clk 0:02:49.3]} 15. Qe2 {[%clk
0:01:51.5]} 15... Bg5 {[%clk 0:02:45.3]} 16. O-O-O {[%clk 0:01:46]} 16... Bxe3+
{[%clk 0:02:44.9]} 17. fxe3 {[%clk 0:01:46.2]} 17... Qg5 {[%clk 0:02:41.3]} 18.
Kb1 {[%clk 0:01:32.8]} 18... O-O-O {[%clk 0:02:38.5]} 19. e4 {[%clk 0:01:29.5]}
19... Nf6 {[%clk 0:02:36.7]} 20. e5 {[%clk 0:01:29.7]} 20... Nd5 {[%clk
0:02:30.8]} 21. Rf1 {[%clk 0:01:17.6]} 21... Rd7 {[%clk 0:02:23]} 22. c3 {[%clk
0:01:11.5]} 22... Qe3 {[%clk 0:02:22.1]} 23. Rh1 {[%clk 0:00:53.9]} 23... Qxe2
{[%clk 0:02:21.4]} 24. Bxe2 {[%clk 0:00:54.8]} 24... Nf4 {[%clk 0:02:20.9]} 25.
Bc4 {[%clk 0:00:52]} 25... g5 {[%clk 0:02:20.6]} 26. Rh8+ {[%clk 0:00:47.9]}
26... Kc7 {[%clk 0:02:20.4]} 27. Rg8 {[%clk 0:00:47.6]} 27... g6 {[%clk
0:02:20.4]} 28. Kc2 {[%clk 0:00:44.9]} 28... b5 {[%clk 0:02:19.4]} 29. Bb3
{[%clk 0:00:43]} 29... c5 {[%clk 0:02:08.9]} 30. dxc5 {[%clk 0:00:33.4]} 30...
Nd3 {[%clk 0:02:08.6]} 31. a4 {[%clk 0:00:32.4]} 31... a6 {[%clk 0:01:31.8]} 32.
Ra8 {[%clk 0:00:31.3]} 32... Nxc5 {[%clk 0:01:26.6]} 33. axb5 {[%clk 0:00:27.2]}
33... axb5 {[%clk 0:01:25.9]} 34. Ba2 {[%clk 0:00:23.2]} 34... Kb7 {[%clk
0:01:11.1]} 35. Ra5 {[%clk 0:00:12.2]} 35... Kb6 {[%clk 0:01:10]} 36. Ra8 {[%clk
0:00:12.3]} 36... Nd3 {[%clk 0:01:08.8]} 37. Rb8+ {[%clk 0:00:12.2]} 37... Kc6
{[%clk 0:01:03.6]} 38. c4 {[%clk 0:00:02.5]} 38... bxc4 {[%clk 0:00:56.4]} 39.
Bxc4 {[%clk 0:00:01.8]} 39... Nxe5 {[%clk 0:00:56.6]} 40. Bb5+ {[%clk
0:00:01.2]} 40... Kc7 {[%clk 0:00:57]} 41. Rf8 {[%clk 0:00:01.5]} 41... Rd5
{[%clk 0:00:55.8]} 42. Ba4 {[%clk 0:00:01.6]} 42... Kd6 {[%clk 0:00:50.8]} 43.
b4 {[%clk 0:00:02.1]} 43... Ke7 {[%clk 0:00:50.9]} 44. Re8+ {[%clk 0:00:02.1]}
44... Kd6 {[%clk 0:00:49.8]} 45. b5 {[%clk 0:00:02.6]} 45... Nd7 {[%clk
0:00:47]} 46. Rd8 {[%clk 0:00:02]} 46... Ke7 {[%clk 0:00:44.9]} 47. Rh8 {[%clk
0:00:02]} 47... Nb6 {[%clk 0:00:44.5]} 48. Bb3 {[%clk 0:00:01.1]} 48... Rxb5
{[%clk 0:00:44.3]} 49. Rb8 {[%clk 0:00:01.4]} 49... Rc5+ {[%clk 0:00:44.2]} 50.
Kd3 {[%clk 0:00:01.8]} 50... Nd7 {[%clk 0:00:40.7]} 51. Rb7 {[%clk 0:00:01.4]}
51... Kd6 {[%clk 0:00:40.5]} 52. Kd2 {[%clk 0:00:01.2]} 52... Ne5 {[%clk
0:00:40.1]} 53. Ra7 {[%clk 0:00:01.7]} 53... Rc6 {[%clk 0:00:32]} 54. Ra4 {[%clk
0:00:02.1]} 54... Rb6 {[%clk 0:00:31.6]} 55. Bc2 {[%clk 0:00:02.5]} 55... Kc5
{[%clk 0:00:27.8]} 56. Bd1 {[%clk 0:00:02.8]} 56... Rb4 {[%clk 0:00:27.6]} 57.
Ra5+ {[%clk 0:00:02.7]} 57... Kd4 {[%clk 0:00:27.3]} 58. Ra7 {[%clk 0:00:03.6]}
58... Rb2+ {[%clk 0:00:26.8]} 59. Ke1 {[%clk 0:00:02.9]} 59... Ke3 {[%clk
0:00:25.4]} 60. Kf1 {[%clk 0:00:01.4]} 60... Rb1 {[%clk 0:00:24.9]} 61. Ke1
{[%clk 0:00:01.6]} 61... Nf3+ {[%clk 0:00:24.4]} 62. Kf1 {[%clk 0:00:01.9]}
62... Rxd1+ {[%clk 0:00:24.6]} 63. Kg2 {[%clk 0:00:02.8]} 63... Rg1+ {[%clk
0:00:23.8]} 64. Kh3 {[%clk 0:00:03.5]} 64... Rh1+ {[%clk 0:00:22.1]} 65. Kg2
{[%clk 0:00:03.4]} 65... Rd1 {[%clk 0:00:12.9]} 66. Ra3+ {[%clk 0:00:03.2]}
66... Rd3 {[%clk 0:00:12.8]} 67. Ra7 {[%clk 0:00:02.8]} 67... Kf4 {[%clk
0:00:10.3]} 68. Rxf7+ {[%clk 0:00:02.6]} 68... Kxg4 {[%clk 0:00:10.5]} 69. Ra7
{[%clk 0:00:02.6]} 69... Rd2+ {[%clk 0:00:10.6]} 70. Kf1 {[%clk 0:00:02.6]}
70... Kg3 {[%clk 0:00:11]} 71. Ra2 {[%clk 0:00:03.3]} 71... Nh2+ {[%clk
0:00:08.9]} 72. Kg1 {[%clk 0:00:03.8]} 72... Rxa2 {[%clk 0:00:08.5]} 0-1

[Event "*** Titled Tuesday Blitz"]
[Site "Chess.com"]
[Date "2021.04.20"]
[Round "7"]
[White "BashirliSaadat"]
[Black "Guzman70"]
[Result "1-0"]
[WhiteElo "2199"]
[BlackElo "2299"]
[TimeControl "180+1"]
[EndTime "11:18:11 PDT"]
[Termination "BashirliSaadat won by checkmate"]

1. e4 {[%clk 0:03:00.9]} 1... c5 {[%clk 0:02:57.7]} 2. Nf3 {[%clk 0:02:59.8]}
2... Nc6 {[%clk 0:02:57.4]} 3. Bb5 {[%clk 0:02:57.1]} 3... g6 {[%clk 0:02:56.9]}
4. O-O {[%clk 0:02:56.4]} 4... Bg7 {[%clk 0:02:56.5]} 5. Re1 {[%clk 0:02:56.1]}
5... Nf6 {[%clk 0:02:55.8]} 6. c3 {[%clk 0:02:55.9]} 6... O-O {[%clk 0:02:55.3]}
7. d4 {[%clk 0:02:55.6]} 7... d5 {[%clk 0:02:54.4]} 8. e5 {[%clk 0:02:47.3]}
8... Ne4 {[%clk 0:02:54.2]} 9. Nbd2 {[%clk 0:02:45.4]} 9... Bf5 {[%clk
0:02:52.6]} 10. Bxc6 {[%clk 0:02:42.3]} 10... bxc6 {[%clk 0:02:52.2]} 11. Nb3
{[%clk 0:02:38]} 11... cxd4 {[%clk 0:02:49.2]} 12. cxd4 {[%clk 0:02:33.2]} 12...
Qb6 {[%clk 0:02:43.8]} 13. Be3 {[%clk 0:02:29.9]} 13... f6 {[%clk 0:02:41.4]}
14. exf6 {[%clk 0:02:28.6]} 14... Bxf6 {[%clk 0:02:40.1]} 15. Nfd2 {[%clk
0:02:22.8]} 15... a5 {[%clk 0:02:35.7]} 16. Nxe4 {[%clk 0:02:18.4]} 16... Bxe4
{[%clk 0:02:32.2]} 17. a4 {[%clk 0:02:10.5]} 17... Rab8 {[%clk 0:02:21.5]} 18.
Ra3 {[%clk 0:02:06.2]} 18... Qc7 {[%clk 0:02:06.8]} 19. Nc5 {[%clk 0:01:59]}
19... Rxb2 {[%clk 0:02:03.8]} 20. Qc1 {[%clk 0:01:37.4]} 20... Rb4 {[%clk
0:01:53.8]} 21. Ne6 {[%clk 0:01:34.4]} 21... Qc8 {[%clk 0:01:46.5]} 22. Nxf8
{[%clk 0:01:34]} 22... Qxf8 {[%clk 0:01:46.1]} 23. Qxc6 {[%clk 0:01:31.3]} 23...
Rc4 {[%clk 0:01:26]} 24. Qe6+ {[%clk 0:01:30.2]} 24... Kg7 {[%clk 0:01:22]} 25.
f3 {[%clk 0:01:24.5]} 25... Bf5 {[%clk 0:01:21.9]} 26. Qxd5 {[%clk 0:01:22.2]}
26... Rc2 {[%clk 0:01:21]} 27. Raa1 {[%clk 0:01:15.6]} 27... Qc8 {[%clk
0:01:13.3]} 28. Rac1 {[%clk 0:01:14.2]} 28... h5 {[%clk 0:01:08.7]} 29. Rxc2
{[%clk 0:01:11.6]} 29... Qxc2 {[%clk 0:01:09.6]} 30. Rc1 {[%clk 0:01:07.6]}
30... Qe2 {[%clk 0:01:08.8]} 31. Bf2 {[%clk 0:01:06.7]} 31... h4 {[%clk
0:01:04.5]} 32. h3 {[%clk 0:01:04.1]} 32... Qb2 {[%clk 0:00:57]} 33. Qc4 {[%clk
0:00:55.5]} 33... Bd3 {[%clk 0:00:50.5]} 34. Qc3 {[%clk 0:00:46.8]} 34... Qe2
{[%clk 0:00:47.9]} 35. Re1 {[%clk 0:00:43]} 35... Qc2 {[%clk 0:00:48.1]} 36.
Qxc2 {[%clk 0:00:39.3]} 36... Bxc2 {[%clk 0:00:49]} 37. Ra1 {[%clk 0:00:39.2]}
37... e5 {[%clk 0:00:49]} 38. d5 {[%clk 0:00:33]} 38... e4 {[%clk 0:00:48.9]}
39. Rc1 {[%clk 0:00:30.6]} 39... Bxa4 {[%clk 0:00:47.1]} 40. fxe4 {[%clk
0:00:28.6]} 40... Be5 {[%clk 0:00:46]} 41. Rc5 {[%clk 0:00:24.2]} 41... Bd1
{[%clk 0:00:37.8]} 42. Rxa5 {[%clk 0:00:23.3]} 42... Bc2 {[%clk 0:00:38.2]} 43.
Ra7+ {[%clk 0:00:22.2]} 43... Kh6 {[%clk 0:00:36.8]} 44. Rd7 {[%clk 0:00:21.3]}
44... Bxe4 {[%clk 0:00:36.6]} 45. Bxh4 {[%clk 0:00:18.9]} 45... g5 {[%clk
0:00:31.5]} 46. Bf2 {[%clk 0:00:18.3]} 46... Kg6 {[%clk 0:00:30.2]} 47. d6
{[%clk 0:00:16.9]} 47... Bf5 {[%clk 0:00:27.7]} 48. Rc7 {[%clk 0:00:13.9]} 48...
Bxd6 {[%clk 0:00:27.2]} 49. Rc6 {[%clk 0:00:13.7]} 49... Be4 {[%clk 0:00:26.7]}
50. Rxd6+ {[%clk 0:00:13.5]} 50... Kf5 {[%clk 0:00:27.3]} 51. Rd4 {[%clk
0:00:13.3]} 51... g4 {[%clk 0:00:25.7]} 52. Rxe4 {[%clk 0:00:12.6]} 52... Kxe4
{[%clk 0:00:25.5]} 53. hxg4 {[%clk 0:00:10.7]} 53... Kf4 {[%clk 0:00:26.4]} 54.
g3+ {[%clk 0:00:10.2]} 54... Kxg4 {[%clk 0:00:27.3]} 55. Kg2 {[%clk 0:00:10.6]}
55... Kh5 {[%clk 0:00:28.1]} 56. Kh3 {[%clk 0:00:10.6]} 56... Kg5 {[%clk
0:00:28.2]} 57. g4 {[%clk 0:00:10.7]} 57... Kh6 {[%clk 0:00:28.1]} 58. Kh4
{[%clk 0:00:10.8]} 58... Kg6 {[%clk 0:00:29]} 59. g5 {[%clk 0:00:10.9]} 59...
Kh7 {[%clk 0:00:29.9]} 60. Kh5 {[%clk 0:00:11]} 60... Kg7 {[%clk 0:00:30.8]} 61.
g6 {[%clk 0:00:11.1]} 61... Kg8 {[%clk 0:00:30.9]} 62. Kh6 {[%clk 0:00:10.3]}
62... Kh8 {[%clk 0:00:31.8]} 63. g7+ {[%clk 0:00:09.5]} 63... Kg8 {[%clk
0:00:32.7]} 64. Be3 {[%clk 0:00:09.5]} 64... Kf7 {[%clk 0:00:33.6]} 65. Kh7
{[%clk 0:00:09.8]} 65... Ke6 {[%clk 0:00:33.2]} 66. g8=Q+ {[%clk 0:00:09.8]}
66... Kf5 {[%clk 0:00:33.9]} 67. Qg6+ {[%clk 0:00:08.4]} 67... Ke5 {[%clk
0:00:33.4]} 68. Bd4+ {[%clk 0:00:08.5]} 68... Kd5 {[%clk 0:00:33]} 69. Qe8
{[%clk 0:00:07.4]} 69... Kc4 {[%clk 0:00:33.9]} 70. Kg6 {[%clk 0:00:07.4]} 70...
Kd3 {[%clk 0:00:34.8]} 71. Bg1 {[%clk 0:00:06.9]} 71... Kc4 {[%clk 0:00:35.7]}
72. Qd8 {[%clk 0:00:06.8]} 72... Kb5 {[%clk 0:00:33.8]} 73. Kf5 {[%clk
0:00:07.7]} 73... Kc6 {[%clk 0:00:34.2]} 74. Ke5 {[%clk 0:00:07.5]} 74... Kb5
{[%clk 0:00:34.6]} 75. Qc8 {[%clk 0:00:06.9]} 75... Ka5 {[%clk 0:00:34.2]} 76.
Bh2 {[%clk 0:00:07.5]} 76... Kb5 {[%clk 0:00:33.5]} 77. Kd5 {[%clk 0:00:07.4]}
77... Ka5 {[%clk 0:00:34]} 78. Qb8 {[%clk 0:00:06.7]} 78... Ka6 {[%clk
0:00:34.3]} 79. Kc5 {[%clk 0:00:06]} 79... Ka5 {[%clk 0:00:34.3]} 80. Qa8#
{[%clk 0:00:06.4]} 1-0